[Event "FRA-ch Teams Top 16-B 2022"]
[Site "Chartres"]
[Date "2022.06.09"]
[Round "1.12"]
[White "Eugene, Floryan"]
[Black "Chabanon, Jean-Luc"]
[Result "1/2-1/2"]
[ECO "B03"]
[WhiteElo "2370"]
[BlackElo "2432"]
[Annotator "TA"]
[PlyCount "116"]
[EventDate "2022.06.09"]
[EventType "team-tourn"]
[EventCountry "FRA"]
[SourceTitle "playchess.com"]
[Source "ChessBase"]
[SourceQuality "1"]
[TimeControl "40/5400+30:1800+30"]

{[%evp 17,115,30,47,45,45,38,42,48,71,81,102,108,106,53,61,55,74,70,68,74,71,65,112,112,89,85,87,86,140,133,115,89,98,70,55,33,69,0,0,-54,44,0,7,20,12,30,75,75,77,46,46,45,35,28,49,0,0,-215,-203,-178,-156,-155,-156,-152,-148,-150,-158,-157,-150,-350,-346,-466,-345,-341,-341,-349,-352,-341,-307,-333,-323,-740,-722,-717,-712,-816,-743,-1081,-990,-820,-933,-1315,-1285,-1118,0,0,0,0,0,0]} 1. e4 {[%emt 0:00:16][%cal Be2e4,Be4e5][%mdl 32]} Nf6 {[%emt 0:00:05]} 2. e5 {[%emt 0:00:39]} Nd5 {[%emt 0:00:37]} 3. d4 {[%emt 0:01:08]} d6 {[%emt 0:00:07]} 4. c4 {[%emt 0:00:45]} Nb6 {[%emt 0:00:08]} 5. exd6 {[%emt 0:00:14]} cxd6 {[%emt 0:00:24]} 6. Nc3 {[%emt 0:00:49]} g6 {[%emt 0:00:05]} 7. Be3 {[%emt 0:00:58]} Bg7 {[%emt 0:00:07]} 8. Rc1 {[%emt 0:00:35]} O-O {[%emt 0:00:06]} 9. b3 {[%emt 0:00:40]} Bf5 {[%emt 0:00:36]} 10. h3 {[%emt 0:11:39] B03: Alekhine's Defence: Four Pawns Attack.} d5 {[%emt 0:03:59]} 11. c5 {[%emt 0:00:54]} Nc8 {[%emt 0:06:46]} 12. g4 {[%emt 0:01:07] White is slightly better.} Be6 {[%emt 0:05:02]} 13. Bg2 {[%emt 0:09:19] [#]} Nc6 $146 {[%emt 0:07:57]} ({Predecessor:} 13... f5 14. gxf5 Rxf5 15. Nge2 Nc6 16. Ng3 Rf8 17. h4 Qd7 18. h5 b6 19. hxg6 hxg6 {0-1 (33) Dauletova,G (2319)-Bulmaga,I (2440) Chess.com INT 2020}) 14. Nge2 {[%emt 0:02:53]} f6 {[%emt 0:12:11]} 15. O-O {[%emt 0:08:14]} (15. Nf4 $16 Bf7 16. Bxd5 Bxd5 17. Nfxd5 (17. Ncxd5 g5 $11)) 15... Bf7 $14 {[%emt 0:00:39]} 16. b4 {[%emt 0:00:57]} a6 {[%emt 0:07:21]} 17. a3 {[%emt 0:06:36]} e6 {[%emt 0:01:09]} 18. Qd2 {[%emt 0:02:23]} N8e7 {[%emt 0:06:46]} 19. Bh6 {[%emt 0:15:17]} g5 {[%emt 0:14:18]} (19... Qc7 $14) 20. Bxg7 $16 {[%emt 0:00:45]} Kxg7 {[%emt 0:00:02]} 21. f4 {[%emt 0:07:42]} Ng6 {[%emt 0:01:58]} 22. Na4 {[%emt 0:07:23]} gxf4 {[%emt 0:15:16]} (22... Rb8 $142) 23. Nxf4 {[%emt 0:00:38]} Nxf4 {[%emt 0:00:34]} 24. Qxf4 {[%emt 0:02:48]} e5 {[%emt 0:01:00]} 25. Qe3 {[%emt 0:03:18]} Qe7 {[%emt 0:02:05]} 26. Rce1 {[%emt 0:03:48]} e4 {[%emt 0:01:04]} 27. Nb6 {[%emt 0:00:18]} ({White should try} 27. Nc3 $14) 27... Rad8 $11 {[%emt 0:00:07]} 28. Qc3 {[%emt 0:04:08]} (28. Rf4 $11) 28... Na7 {[%emt 0:02:27]} ({Better is} 28... Be6 $15) 29. a4 {[%emt 0:05:02]} Nc8 {[%emt 0:01:01]} 30. Nxc8 {[%emt 0:01:00]} Rxc8 {[%emt 0:00:03]} 31. Qg3 {[%emt 0:00:52]} Be8 {[%emt 0:01:29]} 32. Rf5 {[%emt 0:01:07]} Rd8 {[%emt 0:01:13]} 33. g5 {[%emt 0:01:10] Intending gxf6+ and mate. 0x0.001762923f95dp-1022s more active pieces. The black rooks are badly placed.} (33. Ref1 $5 {[%cal Rg4g5]} Bc6 34. R1f2 $11) 33... Bg6 $1 {[%emt 0:01:50]} 34. gxf6+ {[%emt 0:00:24]} Rxf6 {[%emt 0:00:06]} 35. Re5 {[%emt 0:00:46]} Qf7 {[%emt 0:03:20]} 36. h4 {[%emt 0:00:58]} (36. Rf1 $1 $14) 36... Kh8 {[%emt 0:01:00] aiming for ...Rf8.} 37. b5 $2 {[%emt 0:00:43]} (37. Rf1 $1 $11 {and White is okay.}) 37... axb5 $19 {[%emt 0:00:15]} 38. axb5 {[%emt 0:00:03]} Rg8 {[%emt 0:00:42]} 39. Rg5 {[%emt 0:00:20] Hoping for Qe5.} h6 {[%emt 0:02:19]} 40. Rg4 {[%emt 0:00:42][%cal Oh4h5]} Rf8 {[%emt 0:00:59] Threatens to win with ...Bh5.} 41. Qe3 {[%emt 0:08:39]} Kh7 {[%emt 0:11:19]} 42. Rg3 {[%emt 0:07:57]} Bh5 {[%emt 0:03:51]} 43. Kh1 $2 {[%emt 0:11:03]} (43. b6 $17) 43... Rf4 {[%emt 0:00:36]} 44. Kg1 {[%emt 0:01:43]} Qf6 {[%emt 0:03:17]} 45. c6 {[%emt 0:01:19]} bxc6 {[%emt 0:05:19]} 46. b6 {[%emt 0:00:20]} Rb8 {[%emt 0:06:24]} ({Not} 46... Rxh4 47. Rf1 Bf3 48. Bxf3 exf3 49. Rfxf3 $16) (46... Qxh4 47. Ra1 $19) 47. Rb1 {[%emt 0:00:47]} Rb7 {[%emt 0:00:27]} ({Worse is} 47... Rxh4 48. b7 $17) ({But not} 47... Qxh4 $2 48. Rh3 Qg5 49. Qg3 $19) 48. Qc3 {[%emt 0:01:32]} Qxh4 {[%emt 0:03:37][%cal Of4f3]} 49. Ra1 $2 {[%emt 0:01:50]} (49. Rb2) 49... Rxb6 {[%emt 0:00:55]} 50. Qe3 {[%emt 0:00:30]} Qf6 {[%emt 0:01:21]} 51. Ra7+ {[%emt 0:01:02]} Bf7 {[%emt 0:00:22]} 52. Rh3 {[%emt 0:00:00]} Rb1+ {[%emt 0:00:33]} 53. Kh2 {[%emt 0:00:00]} Rb2 {[%emt 0:00:27][%cal Of6g7] White must now prevent ...Qg7!} 54. Qg3 {[%emt 0:00:47]} Rff2 {[%emt 0:00:43]} 55. Kh1 {[%emt 0:00:31]} Rxg2 $2 {[%emt 0:00:39]} (55... Rbe2 $19 {Strongly threatening ...Rf1+.} 56. Qg4 Rf1+ 57. Kh2 {[#]} Rxg2+ $1 {[%mdl 512]} 58. Qxg2 Rf2) 56. Rxf7+ $1 $11 {[%emt 0:00:11] The position is equal.} Qxf7 {[%emt 0:00:23][%cal Rf7f1]} 57. Rxh6+ $1 {[%emt 0:00:08][%mdl 64] [#] Decoy} Kxh6 {[%emt 0:00:01][%cal Rf7f1]} 58. Qg6+ {[%emt 0:00:05]} Qxg6 {[%emt 0:00:11] Weighted Error Value: White=0.42/Black=0.23 (precise)} 1/2-1/2

[Event "FRA-ch Teams Top 16-B 2022"]
[Site "Chartres"]
[Date "2022.06.09"]
[Round "1.13"]
[White "Dionisi, Thomas"]
[Black "Hutois, Mickael"]
[Result "0-1"]
[ECO "C77"]
[WhiteElo "2408"]
[BlackElo "2238"]
[Annotator "TA"]
[PlyCount "102"]
[EventDate "2022.06.09"]
[EventType "team-tourn"]
[EventCountry "FRA"]
[SourceTitle "playchess.com"]
[Source "ChessBase"]
[SourceQuality "1"]
[TimeControl "40/5400+30:1800+30"]

{[%evp 12,102,28,7,10,12,6,14,46,27,31,25,30,32,16,25,17,33,36,25,31,17,27,13,36,41,29,0,5,12,8,8,8,14,16,0,0,-18,-8,-8,-8,-8,-8,-10,0,0,0,0,0,-4,0,0,0,0,0,0,0,-88,-87,-186,-139,-175,-173,-181,-154,-348,-344,-311,-262,-1008,-987,-914,-917,-1333,-1425,-1320,-1186,-1724,-1008,-5081,-3452,-5110,-3172,-29973,-29971,-3204,-3043,-29980,-29981,-29985,-29986,-29985,-29986]} 1. e4 {[%emt 0:00:04]} e5 {[%emt 0:00:05]} 2. Nf3 {[%emt 0:00:06]} Nc6 {[%emt 0:00:04]} 3. Bb5 {[%emt 0:00:03]} a6 {[%emt 0:00:04]} 4. Ba4 {[%emt 0:00:02]} Nf6 {[%emt 0:00:10]} 5. d3 {[%emt 0:00:06]} b5 {[%emt 0:00:40]} 6. Bb3 {[%emt 0:00:04]} Bc5 {[%emt 0:00:09]} 7. Nc3 {[%emt 0:00:12] 7.c3 is becoming the main line.} d6 {[%emt 0:03:58] C77: Ruy Lopez: 3...a6 4 Ba4 Nf6, unusual lines.} 8. Nd5 {[%emt 0:00:20]} h6 {[%emt 0:09:11] Against Bg5} 9. c3 {[%emt 0:00:17]} Ba7 {[%emt 0:06:37] The position is equal.} 10. O-O {[%emt 0:03:16]} O-O {[%emt 0:01:10]} 11. Nxf6+ {[%emt 0:09:04]} Qxf6 {[%emt 0:00:18]} 12. Bd5 {[%emt 0:00:27] [#]} Bb7 $146 {[%emt 0:02:02]} ({Predecessor:} 12... Bd7 13. a4 Bb6 14. Be3 Rab8 15. axb5 axb5 16. Bxb6 Rxb6 17. Nd2 Ne7 18. Ra7 Nxd5 19. exd5 {½-½ (65) Swiercz,D (2617)-Raznikov,D (2494) Jerusalem 2015}) 13. d4 {[%emt 0:07:04]} Rfb8 {[%emt 0:02:00][%cal Re5d4]} 14. Be3 {[%emt 0:03:42]} Ne7 {[%emt 0:21:42]} 15. Bxb7 {[%emt 0:00:48]} Rxb7 {[%emt 0:00:04]} 16. a4 {[%emt 0:00:03] Threatening axb5.} b4 {[%emt 0:05:14]} 17. Qd3 {[%emt 0:02:40]} a5 {[%emt 0:05:26]} 18. Qa6 {[%emt 0:10:40]} Rbb8 {[%emt 0:10:32][%cal Oa7d4]} 19. Qc4 {[%emt 0:01:19]} (19. Qxa5 Bxd4 $1 20. Qxc7 Rc8 $15) 19... bxc3 {[%emt 0:05:45]} 20. bxc3 {[%emt 0:00:39]} exd4 {[%emt 0:00:05]} 21. cxd4 {[%emt 0:14:00]} d5 {[%emt 0:00:16]} 22. exd5 {[%emt 0:00:28]} Qd6 {[%emt 0:00:14]} 23. Bd2 {[%emt 0:13:24]} Bb6 {[%emt 0:03:53]} 24. Ne5 {[%emt 0:12:29]} Qxd5 {[%emt 0:04:27]} 25. Qxd5 {[%emt 0:09:22]} Nxd5 {[%emt 0:00:10]} 26. Nc6 {[%emt 0:01:05]} Re8 {[%emt 0:00:06]} 27. Rfe1 {[%emt 0:00:06]} Kf8 {[%emt 0:00:34]} 28. Kf1 {[%emt 0:01:37]} Ne7 {[%emt 0:01:00]} 29. Nxe7 {[%emt 0:03:50]} Rxe7 {[%emt 0:00:09]} 30. Bc3 {[%emt 0:00:04]} Rd8 {[%emt 0:01:31]} 31. Rxe7 {[%emt 0:03:59]} Kxe7 $11 {[%emt 0:00:04][%mdl 4096] Endgame KRB-KRB} 32. Re1+ {[%emt 0:00:02]} Kd6 {[%emt 0:01:09]} 33. Re5 {[%emt 0:00:28]} f6 {[%emt 0:01:40]} 34. Re4 {[%emt 0:02:40] [#]} (34. Rb5 $11) 34... Kd5 $1 $17 {[%emt 0:01:29]} 35. Re7 {[%emt 0:01:12]} (35. Re1 $17 {was called for.}) 35... Kc4 $19 {[%emt 0:00:17]} 36. Be1 {[%emt 0:00:40]} Kb3 {[%emt 0:03:31]} 37. Rxg7 {[%emt 0:00:16]} Kxa4 {[%emt 0:00:20]} (37... Rxd4 38. Rg3+ Kxa4 39. Ke2 $17) 38. Rh7 $2 {[%emt 0:01:21] White does not recover from this.} (38. Bd2 $17) 38... Kb3 {[%emt 0:00:53] And now ...a4 would win.} ({Not} 38... Bxd4 39. Rxc7 Kb5 40. Ke2 $17) ({And not} 38... Rxd4 39. Rxh6 Kb5 40. Bc3 $17) 39. Rxh6 {[%emt 0:00:06]} a4 {[%emt 0:00:04][%cal Ba5a4,Ba4a3,Ba3a2][%mdl 32]} 40. Rxf6 $2 {[%emt 0:00:52]} (40. Rh3+ Kc2 41. Rc3+ Kb2 42. Rc4) 40... a3 {[%emt 0:01:58] aiming for ...a2.} 41. Rf3+ {[%emt 0:30:59]} Ka4 {[%emt 0:33:15]} 42. Bc3 {[%emt 0:00:00]} Bxd4 {[%emt 0:00:00]} 43. Rd3 {[%emt 0:00:00]} c5 {[%emt 0:00:00][%cal Od4c3] Hoping for ...Bxc3!} 44. h4 {[%emt 0:00:00]} a2 {[%emt 0:00:00] ( -> ...Bxc3)} 45. Ba1 {[%emt 0:00:00]} Rd5 {[%emt 0:00:00][%cal Od4a1]} 46. Rd2 {[%emt 0:00:00]} Kb3 {[%emt 0:00:00][%cal Od4a1]} 47. Rd3+ {[%emt 0:00:00]} Kc2 {[%emt 0:00:00]} 48. Ra3 {[%emt 0:00:00]} Kb1 {[%emt 0:00:00]} 49. Bxd4 {[%emt 0:00:00]} Rxd4 {[%emt 0:00:00] Black mates.} ({Weaker is} 49... cxd4 50. Ke2 $17) 50. Rb3+ {[%emt 0:00:00]} Kc2 {[%emt 0:00:00]} 51. Ra3 {[%emt 0:00:00]} Kb2 {[%emt 0:00:00] Weighted Error Value: White=1.02/Black=0.14 (very precise)} 0-1

[Event "FRA-ch Teams Top 16-B 2022"]
[Site "Chartres"]
[Date "2022.06.09"]
[Round "1.14"]
[White "Le Pen, Steven"]
[Black "Brochet, Philippe"]
[Result "0-1"]
[ECO "B90"]
[WhiteElo "2090"]
[BlackElo "2390"]
[Annotator "TA"]
[PlyCount "96"]
[EventDate "2022.06.09"]
[EventType "team-tourn"]
[EventCountry "FRA"]
[SourceTitle "playchess.com"]
[Source "ChessBase"]
[SourceQuality "1"]
[TimeControl "40/5400+30:1800+30"]

{[%evp 12,96,26,31,52,41,84,95,119,116,119,76,83,79,77,42,24,25,41,-50,-31,-40,-24,-82,-77,-108,-64,-63,-74,-81,-99,-109,-101,-97,-90,-127,-127,-127,-128,-134,-134,-141,-141,-120,-74,-160,-164,-187,-133,-162,-162,-162,-162,-162,-162,-162,-162,-162,-162,-617,-617,-1189,-870,-1097,-1255,-1000,-902,-858,-595,-1317,-1162,-916,-762,-29964,-29966,-29967,-29967,-29960,-29962,-29966,-29967,-29974,-29976,-29976,-29976,-29964,-4631]} 1. e4 {[%emt 0:00:10]} c5 {[%emt 0:01:06]} 2. Nf3 {[%emt 0:00:09]} d6 {[%emt 0:00:53]} 3. d4 {[%emt 0:00:07]} cxd4 {[%emt 0:00:09]} 4. Nxd4 {[%emt 0:00:09]} Nf6 {[%emt 0:00:10]} 5. Nc3 {[%emt 0:00:06]} a6 {[%emt 0:00:10]} 6. Be3 {[%emt 0:01:00]} Nbd7 {[%emt 0:00:08]} 7. f3 {[%emt 0:05:19]} e5 {[%emt 0:13:19] B90: Sicilian Najdorf: Unusual White 6th moves, 6 Be3 Ng4 and 6 Be3 e5.} 8. Nb3 {[%emt 0:07:12]} b5 {[%emt 0:04:27]} 9. a4 $1 {[%emt 0:08:52]} b4 {[%emt 0:03:13] White is better.} 10. Nd5 {[%emt 0:05:31]} Rb8 {[%emt 0:13:32] [#]} 11. Be2 $146 {[%emt 0:17:28]} ({Predecessor:} 11. Bc4 Be7 12. Nxe7 Kxe7 13. Qe2 Qc7 14. O-O Nb6 15. Bd3 {1-0 (36) Spoelman,W (2445)-Schiendorfer,E (2163) Kemer 2007}) 11... Nxd5 {[%emt 0:03:02]} 12. Qxd5 {[%emt 0:00:54]} Be7 {[%emt 0:08:58]} 13. a5 {[%emt 0:13:49]} O-O {[%emt 0:02:25]} 14. O-O {[%emt 0:03:18]} Nf6 {[%emt 0:03:11]} 15. Qc6 {[%emt 0:17:07]} (15. Qd2 $14) 15... Bb7 $15 {[%emt 0:04:41]} 16. Qb6 {[%emt 0:02:59]} Qc8 {[%emt 0:02:37] White should prevent ...d5.} 17. Rac1 {[%emt 0:08:08]} (17. Qxb4 Bxe4 $1 18. Qd2 Qxc2 19. fxe4 Qxb3 20. Bxa6 Nxe4 $17) (17. Bf2 $1 $11) 17... d5 $17 {[%emt 0:02:02]} 18. c3 {[%emt 0:00:56]} Nd7 {[%emt 0:06:18]} 19. Qa7 {[%emt 0:00:52] Hoping for cxb4.} Ra8 $36 {[%emt 0:00:54][%mdl 2048] Black is really pushing.} (19... dxe4 $2 20. cxb4 Qe8 21. Rc7 $18) 20. cxb4 {[%emt 0:00:09] [#]} Bc6 $1 {[%emt 0:00:48]} ({Don't play} 20... Rxa7 $6 21. Rxc8 Rxc8 22. Bxa7 $11) 21. Bxa6 {[%emt 0:04:22]} Qxa6 {[%emt 0:01:21]} 22. Qxa6 {[%emt 0:00:56]} Rxa6 {[%emt 0:00:14]} 23. Nc5 {[%emt 0:01:30]} Nxc5 {[%emt 0:08:49]} 24. Bxc5 {[%emt 0:00:08]} Bxc5+ {[%emt 0:00:11]} 25. Rxc5 {[%emt 0:00:10]} dxe4 {[%emt 0:00:09]} 26. b5 {[%emt 0:01:07]} Rxa5 {[%emt 0:00:13]} 27. Rxc6 {[%emt 0:00:15]} exf3 {[%emt 0:00:28]} (27... Rxb5 $142 28. fxe4 Rxb2) 28. Rxf3 {[%emt 0:00:59]} ({White should play} 28. b6) 28... Rxb5 {[%emt 0:00:18][%mdl 4096] Endgame KRR-KRR} 29. Re3 {[%emt 0:00:33]} g6 {[%emt 0:06:06]} ({Worse is} 29... Rxb2 30. Rxe5 g6 31. Rec5 $17) ({Black should try} 29... f6 $19 30. b3 Rfb8) 30. Rc7 {[%emt 0:00:21]} f5 {[%emt 0:01:00]} 31. Rh3 {[%emt 0:00:51]} Rf7 {[%emt 0:01:08]} ({And not} 31... Rxb2 32. Rhxh7 Rd8 33. Rhg7+ Kh8 34. Rh7+ Kg8 35. Rhg7+ Kh8 36. Rh7+ Kg8 $11) 32. Rxf7 {[%emt 0:00:30]} Kxf7 {[%emt 0:00:02]} 33. Rxh7+ $19 {[%emt 0:00:14] KR-KR} Kf6 {[%emt 0:00:14]} 34. h4 {[%emt 0:00:41]} Rxb2 {[%emt 0:00:55]} 35. h5 $2 {[%emt 0:00:32]} (35. Rh8) 35... Rb1+ {[%emt 0:14:49]} 36. Kf2 {[%emt 0:00:22]} Rh1 {[%emt 0:00:00]} 37. h6 {[%emt 0:00:40]} e4 {[%emt 0:00:00]} 38. Rh8 {[%emt 0:00:20]} Kg5 {[%emt 0:00:00]} 39. h7 {[%emt 0:00:38]} Kf6 {[%emt 0:00:00]} 40. g4 {[%emt 0:00:33]} Kg7 {[%emt 0:00:00]} 41. Re8 {[%emt 0:05:10]} Rxh7 {[%emt 0:05:53] ...Kf6 is the strong threat.} 42. gxf5 {[%emt 0:07:17]} gxf5 {[%emt 0:00:23] Black mates.} 43. Ke3 {[%emt 0:00:21]} Kf7 {[%emt 0:01:12]} 44. Rb8 {[%emt 0:00:59]} Rh3+ {[%emt 0:00:50]} 45. Kf4 {[%emt 0:00:15]} Rf3+ {[%emt 0:00:13]} 46. Ke5 {[%emt 0:00:13]} e3 {[%emt 0:00:22]} 47. Rb7+ {[%emt 0:00:40]} Kg6 {[%emt 0:00:22]} 48. Rb6+ {[%emt 0:00:26]} Kg5 {[%emt 0:00:10] Weighted Error Value: White=0.68/Black=0.10 (very precise)} (48... Kh5 $142 49. Re6 Kg4 50. Rg6+ Kh3 51. Rg1 Kh2 52. Re1 Kg2 53. Kf6 Kf2 54. Rh1 e2 55. Rh2+ Kf1 56. Kf7 e1=Q 57. Rc2 f4 58. Rc5 Rg3 59. Rh5 Qe4 60. Rc5 f3 61. Ra5 f2 62. Ra6 Qf5+ 63. Rf6 Qd7+ 64. Kf8 Qg7+ 65. Ke8 Qxf6 66. Kd7 Rg7+ 67. Ke8 Qe7#) 0-1

[Event "FRA-ch Teams Top 16-B 2022"]
[Site "Chartres"]
[Date "2022.06.09"]
[Round "1.15"]
[White "Marcelin, Cyril"]
[Black "Prodhomme, Boris"]
[Result "1-0"]
[ECO "D00"]
[WhiteElo "2440"]
[BlackElo "2045"]
[Annotator "TA"]
[PlyCount "67"]
[EventDate "2022.06.09"]
[EventType "team-tourn"]
[EventCountry "FRA"]
[SourceTitle "playchess.com"]
[Source "ChessBase"]
[SourceQuality "1"]
[TimeControl "40/5400+30:1800+30"]

{[%evp 9,67,0,0,-7,0,0,4,-1,4,4,8,6,8,0,11,2,5,6,12,8,6,6,18,-9,10,10,10,10,30,29,22,-13,16,14,12,28,45,44,58,56,45,56,40,33,81,87,99,83,236,233,239,238,237,229,510,504,494,483,403,379]} 1. d4 {[%emt 0:00:20]} Nf6 {[%emt 0:00:05]} 2. Nf3 {[%emt 0:01:24]} g6 {[%emt 0:00:22]} 3. Nc3 {[%emt 0:00:36]} d5 {[%emt 0:00:31]} 4. Bf4 {[%emt 0:00:14]} Bg7 {[%emt 0:01:32]} 5. Nb5 {[%emt 0:00:22]} Na6 {[%emt 0:00:52]} 6. e3 {[%emt 0:01:03] D00: 1 d4 d5: Unusual lines.} O-O {[%emt 0:02:55] 6...0-0 is better than 6...c6.} 7. h3 {[%emt 0:02:30]} c6 {[%emt 0:05:51]} 8. Nc3 {[%emt 0:00:08] The position is equal.} Nc7 {[%emt 0:01:19]} 9. Bd3 {[%emt 0:03:53]} Nce8 {[%emt 0:02:32]} 10. O-O {[%emt 0:04:32]} Nd6 {[%emt 0:02:57]} 11. Re1 {[%emt 0:06:20]} Bf5 {[%emt 0:21:44] [#]} 12. Be5 $146 {[%emt 0:19:44]} ({Predecessor:} 12. Rc1 Rc8 13. Qe2 Nfe4 14. Nb1 Re8 15. Nbd2 f6 16. c4 e5 17. dxe5 fxe5 18. Bh2 Nxd2 19. Nxd2 {1-0 (38) Alekseenko,K (2696)-Iljiushenok,I (2516) Chess.com INT 2020}) 12... Nfe4 {[%emt 0:11:39]} 13. Bxe4 {[%emt 0:10:43]} Bxe4 {[%emt 0:02:25]} 14. Nd2 {[%emt 0:05:14]} Bf5 {[%emt 0:03:31]} 15. Bxg7 {[%emt 0:00:08]} Kxg7 {[%emt 0:00:04]} 16. f3 {[%emt 0:07:09]} Qb6 {[%emt 0:09:59]} 17. Na4 {[%emt 0:01:11]} Qb5 {[%emt 0:02:54]} 18. b3 {[%emt 0:01:35]} b6 {[%emt 0:01:16]} 19. e4 {[%emt 0:06:34]} Be6 {[%emt 0:00:44]} 20. Qe2 {[%emt 0:06:17]} dxe4 {[%emt 0:05:46]} 21. fxe4 {[%emt 0:00:38]} Qxe2 {[%emt 0:01:51]} 22. Rxe2 {[%emt 0:00:02]} Nb5 {[%emt 0:01:32]} 23. Nf3 {[%emt 0:00:39]} Rad8 {[%emt 0:02:34]} 24. Rd1 {[%emt 0:01:09]} f6 {[%emt 0:04:09]} 25. c4 {[%emt 0:00:34]} Nc7 {[%emt 0:00:21]} 26. d5 {[%emt 0:02:35]} Bc8 {[%emt 0:01:56] [#]} (26... Bd7 $14 {might be stronger.}) 27. Nd4 $1 $16 {[%emt 0:01:52]} Bb7 {[%emt 0:00:41]} 28. Nc3 {[%emt 0:01:05][%cal Ba4c3,Bc3b5,Bb5c7][%mdl 32] White is much more active.} c5 $2 {[%emt 0:00:17] [#] A mistake that costs the game.} (28... e5 $16) 29. Ncb5 $1 $18 {[%emt 0:00:26]} cxd4 {[%emt 0:04:22]} 30. Nxc7 {[%emt 0:00:13] Threatens to win with Ne6+.} Bc8 {[%emt 0:00:40]} 31. e5 {[%emt 0:03:24][%cal Be4e5,Be5e6][%mdl 32]} ({Much less strong is} 31. Rxd4 $6 e5) 31... Rf7 $2 {[%emt 0:06:34]} (31... fxe5 32. Rxe5 Rf7 33. Rxd4 Kf8) 32. e6 {[%emt 0:04:34]} Rff8 {[%emt 0:00:13]} 33. Rxd4 {[%emt 0:01:13]} f5 {[%emt 0:02:18]} 34. d6 {[%emt 0:00:29] Weighted Error Value: White=0.03 (flawless) /Black=0.27 (precise)} 1-0

[Event "FRA-ch Teams Top 16-B 2022"]
[Site "Chartres"]
[Date "2022.06.09"]
[Round "1.16"]
[White "Ruhlmann, Helene"]
[Black "Monpeurt, Cyrielle"]
[Result "0-1"]
[ECO "A65"]
[WhiteElo "1779"]
[BlackElo "2172"]
[Annotator "TA"]
[PlyCount "86"]
[EventDate "2022.06.09"]
[EventType "team-tourn"]
[EventCountry "FRA"]
[SourceTitle "playchess.com"]
[Source "ChessBase"]
[SourceQuality "1"]
[TimeControl "40/5400+30:1800+30"]

{[%evp 11,86,51,56,56,44,54,49,48,46,42,60,47,49,44,42,37,25,38,44,45,52,44,66,14,21,14,16,0,66,52,132,110,173,122,195,176,182,195,176,186,165,79,77,-330,-308,-29975,-29974,-2864,-816,-819,-833,-825,-834,-829,-831,-830,-821,-778,-566,-757,-549,-549,-549,-549,-507,-467,-446,-587,-549,-893,-878,-979,-973,-1211,-1193,-1053,-840]} 1. d4 {[%emt 0:00:03]} Nf6 {[%emt 0:00:13]} 2. c4 {[%emt 0:00:09]} c5 {[%emt 0:00:11]} 3. d5 {[%emt 0:00:22]} e6 {[%emt 0:00:12]} 4. Nc3 {[%emt 0:00:21]} exd5 {[%emt 0:00:07]} 5. cxd5 {[%emt 0:00:05]} d6 {[%emt 0:00:04]} 6. e4 {[%emt 0:00:21]} g6 {[%emt 0:00:27]} 7. h3 {[%emt 0:00:58] A65: Modern Benoni: 6 e4.} a6 {[%emt 0:04:06]} 8. a4 {[%emt 0:02:48] Prevents b5.} Nbd7 {[%emt 0:02:41]} 9. Nf3 {[%emt 0:03:01] White is slightly better.} Bg7 {[%emt 0:00:44]} 10. Bd3 {[%emt 0:00:49]} Nh5 {[%emt 0:00:15]} 11. Bg5 {[%emt 0:07:25] 11.g4 is setting a new trend.} Bf6 {[%emt 0:04:29]} 12. Be3 {[%emt 0:00:43]} Ne5 {[%emt 0:04:02]} 13. Nxe5 {[%emt 0:08:01]} Bxe5 {[%emt 0:00:11]} 14. Qd2 {[%emt 0:00:29]} O-O {[%emt 0:08:40]} 15. g4 {[%emt 0:01:37]} Ng7 {[%emt 0:00:06]} 16. f4 {[%emt 0:02:22]} Bd4 {[%emt 0:07:18] [#]} 17. Bxd4 $146 {[%emt 0:14:44]} (17. O-O-O $14) ({Predecessor:} 17. O-O-O Bd7 18. Bc2 b5 19. Bxd4 cxd4 20. Qxd4 Rc8 21. Kb1 Rc4 22. Qd3 Qa5 23. Na2 {0-1 (73) Roos,J (2273)-Libiszewski,F (2505) France 2009}) 17... cxd4 $11 {[%emt 0:00:07]} 18. Nd1 {[%emt 0:00:02][%cal Bc3d1,Bd1f2,Bf2e4,Be4d6][%mdl 32]} f5 {[%emt 0:08:34]} 19. Nf2 {[%emt 0:02:37]} fxe4 {[%emt 0:08:29]} ({Better is} 19... Bd7 $1 $11) 20. Nxe4 $14 {[%emt 0:01:33]} b6 {[%emt 0:08:14]} (20... Bd7 $1 $14) 21. O-O $36 {[%emt 0:08:34][%mdl 2048] White is really pushing.} Ra7 {[%emt 0:15:10]} (21... Bb7 $16) 22. Rac1 {[%emt 0:08:17]} (22. Rf3 $18) 22... Qh4 {[%emt 0:06:35]} (22... h5 $16 {was called for.}) 23. Nxd6 $18 {[%emt 0:14:00]} Bd7 {[%emt 0:03:20]} 24. Rf3 {[%emt 0:04:20]} h5 {[%emt 0:05:24] [#]} 25. g5 {[%emt 0:00:24] And now Bf1 would win.} ({And not} 25. Bxg6 hxg4 26. Rf2 Qf6 27. Bf7+ Rxf7 28. Nxf7 g3 $17) 25... Bxh3 {[%emt 0:01:21] Strongly threatening ...Qg4+.} 26. Qh2 {[%emt 0:00:15]} (26. Qf2 $18 {and White stays clearly on top.} Qxf2+ 27. Rxf2) 26... Qg4+ $16 {[%emt 0:00:10]} 27. Rg3 $2 {[%emt 0:00:12][%mdl 8192] This costs White the game.} (27. Kf2 $16 {and life is bright.} Qh4+ 28. Qg3 Qxg3+ 29. Kxg3) 27... Qxf4 $19 {[%emt 0:00:18] The board is on fire.} 28. Rxh3 $2 {[%emt 0:00:13]} (28. Ra1 $19 Bf5 29. Nxf5 Nxf5 30. Rh3 Qxg5+ 31. Qg2 Qxg2+ 32. Kxg2) 28... Qxc1+ {[%emt 0:00:13]} 29. Kg2 {[%emt 0:02:34]} Qxb2+ {[%emt 0:01:40]} (29... Rc7 $142 30. Qg1 Qxb2+ 31. Kh1 Rc1) 30. Kh1 {[%emt 0:00:29]} Qc1+ {[%emt 0:01:43]} 31. Qg1 {[%emt 0:00:08]} Qc5 {[%emt 0:00:34][%csl LRd5,LRd6]} 32. Ne4 {[%emt 0:05:14]} Qxd5 {[%emt 0:00:30] Threatens to win with ...Ne6.} 33. Qg2 {[%emt 0:00:09]} Kh8 {[%emt 0:03:18] aiming for ...Ne6.} 34. Nf6 {[%emt 0:01:39]} Qxg2+ {[%emt 0:00:18]} 35. Kxg2 {[%emt 0:00:04]} Ne8 {[%emt 0:00:32]} 36. Nxe8 {[%emt 0:05:27]} Rxe8 {[%emt 0:00:05]} 37. Bxg6 {[%emt 0:00:07][%mdl 4096] Endgame KRR-KRB} Re5 {[%emt 0:02:16]} 38. Rxh5+ {[%emt 0:01:31] [#]} Kg8 $1 {[%emt 0:06:53] ...Rg7 is the strong threat.} 39. Bd3 {[%emt 0:01:25]} Rg7 {[%emt 0:00:00]} 40. Rh6 {[%emt 0:01:42]} Rexg5+ {[%emt 0:00:00]} 41. Kf2 {[%emt 0:06:37]} Rf7+ {[%emt 0:00:00]} 42. Ke2 {[%emt 0:03:17]} Rg2+ {[%emt 0:00:00]} 43. Kd1 {[%emt 0:00:12]} Rff2 {[%emt 0:00:50] Weighted Error Value: White=0.59/Black=0.46} 0-1